bitfinex/quotes_SOLUSD_20250525
["timestamp","ask_amount","ask_price","bid_price","bid_amount"]
[1748134946665,30.45660201,171.28,171.24,30.45660201]
[1748134946864,26.0,171.33,171.23,30.45660201]
[1748134947070,30.45660201,171.28,171.23,30.45660201]
[1748134947364,30.45660201,171.29,171.24,30.45660201]
[1748134947572,30.45660201,171.29,171.25,272.46]
[1748134947739,30.45660201,171.27,171.25,272.46]
[1748134948271,30.45660201,171.26,171.25,54.24]
[1748134948466,30.45660201,171.26,171.21,34.98]
[1748134948781,30.45660201,171.25,171.21,34.98]
[1748134948966,30.45660201,171.24,171.2,30.45660201]
[1748134949134,30.45660201,171.24,171.22,34.98]
[1748134949565,30.45660201,171.23,171.14,8.4316]
[1748134949746,30.45660201,171.19,171.15,65.43660201]
[1748134949936,30.45660201,171.2,171.15,65.43660201]
[1748134950140,30.45660201,171.19,171.15,34.98]
[1748134950359,30.45660201,171.16,171.14,8.4316]
[1748134950567,26.0,171.21,171.15,34.98]
[1748134950779,30.45660201,171.18,171.15,34.98]
[1748134950940,30.45660201,171.17,171.15,34.98]
[1748134951135,30.45660201,171.16,171.15,34.98]
[1748134951455,56.45660201,171.16,171.08,3.03880873]
[1748134951657,30.45660201,171.09,171.08,3.03880873]
[1748134951856,30.45660201,171.09,171.08,38.01880873]
[1748134952065,30.45660201,171.09,171.08,34.98]
[1748134952447,26.0,171.12,171.08,34.98]
[1748134952670,30.45660201,171.09,171.08,34.98]
[1748134953668,56.45660201,171.09,171.08,34.98]
[1748134953869,26.0,171.09,170.97,8.4827]
[1748134954052,30.45660201,171.0,170.97,6.3668]
[1748134954267,26.0,171.09,170.98,34.98]
[1748134954268,18.79181043,171.08,170.98,34.98]
[1748134954448,30.45660201,170.99,170.92,54.78753321]
[1748134954644,4.78815782,171.11,170.96,30.45660201]
[1748134954844,10.0,171.21,171.03,30.45660201]
[1748134955064,18.79181043,171.16,171.05,30.45660201]
[1748134955345,4.00060296,171.17,171.07,30.45660201]
[1748134955346,30.45660201,171.12,171.07,30.45660201]
[1748134955567,30.45660201,171.1,171.06,34.98]
[1748134955969,30.45660201,171.11,171.06,34.98]
[1748134956462,30.45660201,171.1,171.06,34.98]
[1748134956787,0.14216157,171.23,171.09,30.45660201]
[1748134957075,30.45660201,171.13,171.08,30.45660201]
[1748134957366,30.45660201,171.09,171.04,6.3668]
[1748134957683,26.0,171.17,171.05,337.99660201]
[1748134957885,30.45660201,171.12,171.07,30.45660201]
[1748134958249,30.45660201,171.11,171.06,30.45660201]
[1748134958759,30.45660201,171.13,171.07,30.45660201]
[1748134959073,26.0,171.16,171.11,30.45660201]
[1748134959074,30.45660201,171.16,171.11,30.45660201]
[1748134959371,30.45660201,171.16,171.12,34.98]
[1748134959952,30.45660201,171.17,171.12,65.43660201]
[1748134960159,30.45660201,171.18,171.13,30.45660201]
[1748134960777,30.45660201,171.17,171.12,65.43660201]
[1748134961466,26.0,171.21,171.13,30.45660201]
[1748134961673,30.45660201,171.18,171.13,30.45660201]
[1748134961877,4.00060296,171.32,171.13,30.45660201]
[1748134962075,30.45660201,171.21,171.16,30.45660201]
[1748134962781,30.45660201,171.22,171.17,30.45660201]
[1748134962987,30.45660201,171.22,171.18,34.98]
[1748134963169,30.45660201,171.19,171.04,16.3668]
[1748134963375,30.45660201,171.13,171.08,30.45660201]
[1748134963574,30.45660201,171.11,171.04,6.3668]
[1748134963805,30.45660201,171.1,171.09,34.98]
[1748134964092,30.45660201,171.24,171.09,65.43660201]
[1748134964289,30.45660201,171.13,171.09,34.98]
[1748134964466,26.0,171.2,171.1,30.45660201]
[1748134964889,30.45660201,171.14,171.09,65.43660201]
[1748134965092,30.45660201,171.13,171.09,34.98]
[1748134966091,30.45660201,171.14,171.09,65.43660201]
[1748134966682,30.45660201,171.13,171.09,34.98]
[1748134967493,30.45660201,171.14,171.1,272.58]
[1748134967792,30.45660201,171.13,171.1,272.58]
[1748134967966,30.45660201,171.13,171.08,30.45660201]
[1748134968167,30.45660201,171.13,171.09,34.98]
[1748134970098,30.45660201,171.14,171.09,65.43660201]
[1748134970276,30.45660201,171.16,171.1,30.45660201]
[1748134970791,30.45660201,171.13,171.09,34.98]
[1748134971196,6.452,171.23,171.12,30.45660201]
[1748134971491,5.97730296,171.24,171.12,30.45660201]
[1748134971492,30.45660201,171.17,171.12,30.45660201]
[1748134971680,30.45660201,171.15,171.1,30.45660201]
[1748134972293,30.45660201,171.16,171.11,30.45660201]
[1748134973212,30.45660201,171.15,171.1,30.45660201]
[1748134973378,44.79181043,171.22,171.04,6.3668]
[1748134973379,30.45660201,171.11,171.04,6.3668]
[1748134973572,30.45660201,171.11,171.06,30.45660201]
[1748134974002,30.45660201,171.11,171.07,34.98]
[1748134974190,30.45660201,171.14,171.09,30.45660201]
[1748134974392,30.45660201,171.15,171.09,30.45660201]
[1748134974693,30.45660201,171.15,171.1,30.45660201]
[1748134974900,32.43330201,171.24,171.11,30.45660201]
[1748134975101,30.45660201,171.16,171.11,30.45660201]
[1748134975294,30.45660201,171.15,171.1,30.45660201]
[1748134975491,30.45660201,171.15,171.07,34.98]
[1748134975681,30.45660201,171.15,171.1,30.45660201]
[1748134976002,30.45660201,171.16,171.11,30.45660201]
[1748134976182,26.0,171.2,171.12,30.45660201]
[1748134976383,30.45660201,171.17,171.13,34.98]
[1748134977000,30.45660201,171.19,171.14,30.45660201]
[1748134977175,30.45660201,171.19,171.13,65.43660201]
[1748134977580,30.45660201,171.2,171.14,302.57660201]
[1748134978102,30.45660201,171.21,171.16,30.45660201]
[1748134978300,30.45660201,171.2,171.15,36.83240201]
[1748134979409,30.45660201,171.21,171.15,36.83240201]
[1748134979788,30.45660201,171.22,171.17,30.45660201]
[1748134979986,30.45660201,171.21,171.16,30.45660201]
[1748134980386,30.45660201,171.22,171.17,30.45660201]
[1748134980593,26.0,171.27,171.17,30.45660201]
[1748134980796,30.45660201,171.23,171.18,30.45660201]
[1748134980996,30.45660201,171.23,171.19,34.98]
[1748134981399,18.79181043,171.3,171.19,34.98]
[1748134981708,26.0,171.29,171.2,30.45660201]
[1748134981908,12.48090296,171.33,171.22,30.45660201]
[1748134982205,4.00060296,171.33,171.24,30.45660201]
[1748134982414,30.45660201,171.29,171.25,34.98]
[1748134982711,4.00060296,171.33,171.26,30.45660201]
[1748134983011,30.45660201,171.32,171.27,30.45660201]
[1748134983483,30.45660201,171.31,171.26,30.45660201]
[1748134983681,30.45660201,171.28,171.25,34.98]
[1748134983927,30.45660201,171.26,171.19,30.45660201]
[1748134984085,30.45660201,171.24,171.2,34.98]
[1748134984416,30.45660201,171.26,171.21,30.45660201]
[1748134984578,30.45660201,171.25,171.2,65.43660201]
[1748134984779,30.45660201,171.24,171.2,34.98]
[1748134985195,30.45660201,171.26,171.21,30.45660201]
[1748134985395,30.45660201,171.22,171.16,30.45660201]
[1748134985608,26.0,171.25,171.17,34.98]
[1748134985609,30.45660201,171.2,171.17,34.98]
[1748134985816,26.0,171.3,171.17,34.98]
[1748134986014,30.45660201,171.2,171.17,34.98]
[1748134986385,30.45660201,171.19,171.15,6.3758]
[1748134986603,26.0,171.26,171.15,6.3758]
[1748134986604,30.45660201,171.18,171.16,34.98]
[1748134986792,30.45660201,171.23,171.17,30.45660201]
[1748134987007,30.45660201,171.25,171.2,30.45660201]
[1748134987386,30.45660201,171.27,171.22,30.45660201]
[1748134987609,4.00060296,171.32,171.23,307.0]
[1748134987823,30.45660201,171.3,171.25,30.45660201]
[1748134988130,4.00060296,171.32,171.29,30.45660201]
[1748134988306,4.00060296,171.32,171.3,34.98]
[1748134988698,30.45660201,171.34,171.3,34.98]
[1748134989099,4.00060296,171.42,171.33,30.45660201]
[1748134989299,30.45660201,171.4,171.35,30.45660201]
[1748134989511,34.45720497,171.42,171.37,30.45660201]
[1748134989700,34.45720497,171.42,171.38,34.98]
[1748134990111,30.45660201,171.42,171.38,34.98]
[1748134990312,30.45660201,171.48,171.38,34.98]
[1748134990513,30.45660201,171.44,171.38,34.98]
[1748134990802,30.45660201,171.43,171.38,65.43660201]
[1748134991002,30.45660201,171.4,171.38,34.98]
[1748134991301,30.45660201,171.39,171.38,34.98]
[1748134992633,30.45660201,171.41,171.38,34.98]
[1748134993029,30.45660201,171.42,171.38,34.98]
[1748134993814,30.45660201,171.43,171.38,65.43660201]
[1748134994718,30.45660201,171.42,171.38,34.98]
[1748134995232,26.0,171.46,171.38,34.98]
[1748134995401,12.13460296,171.54,171.42,30.45660201]
[1748134995599,4.00060296,171.54,171.45,30.45660201]
[1748134995801,30.45660201,171.5,171.45,30.45660201]
[1748134996002,4.00060296,171.54,171.46,30.45660201]
[1748134996342,4.0763043,171.58,171.49,30.45660201]
[1748134996507,4.0763043,171.58,171.51,30.45660201]
[1748134996708,30.45660201,171.56,171.51,30.45660201]
[1748134997125,26.0,171.59,171.5,34.96]
[1748134997431,30.45660201,171.51,171.44,30.45660201]
[1748134997631,26.0,171.56,171.45,306.78]
[1748134997632,30.45660201,171.48,171.45,306.78]
[1748134997854,30.45660201,171.51,171.46,30.45660201]
[1748134998031,26.0,171.56,171.47,30.45660201]
[1748134998346,26.0,171.57,171.48,30.45660201]
[1748134998550,30.45660201,171.53,171.48,30.45660201]
[1748134998747,30.45660201,171.54,171.49,30.45660201]
[1748134999231,30.45660201,171.6,171.49,30.45660201]
[1748134999432,30.45660201,171.58,171.53,30.45660201]
[1748134999632,30.45660201,171.58,171.54,34.94]
[1748134999964,30.45660201,171.57,171.54,34.94]
[1748135000251,8.5562,171.64,171.54,34.94]
[1748135000541,26.0,171.61,171.54,34.94]
[1748135000727,13.38035782,171.69,171.54,34.94]
[1748135000924,30.45660201,171.57,171.54,34.94]
[1748135001367,30.45660201,171.58,171.54,34.94]
[1748135001516,30.45660201,171.57,171.54,34.94]
[1748135001713,30.45660201,171.57,171.52,30.45660201]
[1748135001917,30.45660201,171.53,171.47,30.45660201]
[1748135002134,30.45660201,171.52,171.48,34.92]
[1748135002342,26.0,171.57,171.48,65.37660201]
[1748135002524,30.45660201,171.55,171.5,30.45660201]
[1748135002843,30.45660201,171.56,171.51,30.45660201]
[1748135003251,30.45660201,171.56,171.48,34.92]
[1748135003252,30.45660201,171.57,171.52,30.45660201]
[1748135003417,26.0,171.61,171.53,30.45660201]
[1748135003620,30.45660201,171.57,171.54,34.92]
[1748135003843,26.0,171.61,171.55,34.92]
[1748135004043,26.0,171.61,171.56,34.92]
[1748135004362,30.45660201,171.57,171.56,34.92]
[1748135004514,30.45660201,171.57,171.45,6.4377]
[1748135004827,26.0,171.58,171.49,30.45660201]
[1748135005012,18.64964886,171.61,171.5,30.45660201]
[1748135005227,26.0,171.6,171.52,30.45660201]
[1748135005428,26.0,171.6,171.53,65.37660201]
[1748135005727,30.45660201,171.54,171.53,34.92]
[1748135005930,26.0,171.6,171.53,34.92]
[1748135006256,30.45660201,171.55,171.53,34.92]
[1748135006455,30.45660201,171.57,171.53,34.92]
[1748135006654,26.0,171.6,171.53,34.92]
[1748135006854,30.45660201,171.6,171.55,30.45660201]
[1748135007030,13.38035782,171.69,171.56,30.45660201]
[1748135007031,18.79181043,171.68,171.56,30.45660201]
[1748135007229,30.45660201,171.6,171.55,30.45660201]
[1748135007431,30.45660201,171.6,171.56,217.88]
[1748135007752,30.45660201,171.57,171.39,10.0]
[1748135007925,30.45660201,171.53,171.48,30.45660201]
[1748135008256,30.45660201,171.55,171.5,30.45660201]
[1748135008432,26.0,171.57,171.5,30.45660201]
[1748135008633,8.5922,171.69,171.54,30.45660201]
[1748135008835,30.45660201,171.61,171.56,30.45660201]
[1748135009053,30.45660201,171.61,171.55,34.92]
[1748135009054,30.45660201,171.6,171.57,34.92]
[1748135009429,30.45660201,171.61,171.57,34.92]
[1748135009770,8.73436157,171.69,171.57,65.37660201]
[1748135009771,30.45660201,171.62,171.57,65.37660201]
[1748135010145,30.45660201,171.61,171.57,34.92]
[1748135010536,26.0,171.65,171.57,71.66410201]
[1748135010839,8.2399,171.75,171.63,30.45660201]
[1748135011045,8.2399,171.75,171.64,34.92]
[1748135011046,30.45660201,171.68,171.64,34.92]
[1748135011367,8.2399,171.75,171.64,34.92]
[1748135011368,30.45660201,171.7,171.65,30.45660201]
[1748135011669,30.45660201,171.69,171.64,65.37660201]
[1748135012135,30.45660201,171.66,171.64,34.92]
[1748135012337,30.45660201,171.68,171.64,34.92]
[1748135012537,26.0,171.72,171.64,34.92]
[1748135012742,30.45660201,171.65,171.57,6.2875]
[1748135012948,30.45660201,171.63,171.58,65.35660201]
[1748135013374,26.0,171.69,171.58,34.9]
[1748135013375,30.45660201,171.62,171.58,34.9]
[1748135013758,30.45660201,171.63,171.58,65.35660201]
[1748135013957,26.0,171.69,171.58,65.35660201]
[1748135014160,30.45660201,171.64,171.59,30.45660201]
[1748135014482,26.0,171.7,171.61,30.45660201]
[1748135014778,30.45660201,171.67,171.62,30.45660201]
[1748135015157,30.45660201,171.65,171.61,30.45660201]
[1748135015552,30.45660201,171.65,171.6,30.45660201]
[1748135015862,30.45660201,171.62,171.58,65.35660201]
[1748135016170,26.0,171.68,171.59,30.45660201]
[1748135016350,26.0,171.68,171.58,34.9]
[1748135016555,10.0,171.82,171.62,30.45660201]
[1748135016754,10.0,171.82,171.58,44.9]
[1748135016755,18.79181043,171.79,171.63,30.45660201]
[1748135016958,30.45660201,171.68,171.62,30.45660201]
[1748135017271,30.45660201,171.67,171.62,30.45660201]
[1748135017470,18.79181043,171.79,171.64,30.45660201]
[1748135017676,30.45660201,171.71,171.65,34.9]
[1748135017850,30.45660201,171.7,171.65,34.9]
[1748135018179,26.0,171.75,171.65,65.35660201]
[1748135018377,30.45660201,171.71,171.66,30.45660201]
[1748135019096,30.45660201,171.71,171.65,34.9]
[1748135019097,31.67770668,171.8,171.67,30.45660201]
[1748135019259,30.45660201,171.73,171.68,30.45660201]
[1748135019800,18.79181043,171.82,171.69,30.45660201]
[1748135020084,26.0,171.79,171.69,30.45660201]
[1748135020252,30.45660201,171.74,171.69,30.45660201]
[1748135020454,30.45660201,171.72,171.67,6.2875]
[1748135020779,30.45660201,171.71,171.67,6.2875]
[1748135020979,30.45660201,171.68,171.64,2.1564]
[1748135021159,26.0,171.76,171.65,34.9]
[1748135021369,30.45660201,171.67,171.65,34.9]
[1748135022581,30.45660201,171.66,171.65,34.9]
[1748135022954,30.45660201,171.66,171.62,6.2875]
[1748135023156,30.45660201,171.65,171.63,34.88]
[1748135023371,30.45660201,171.65,171.59,2.1564]
[1748135023372,26.0,171.7,171.59,32.61300201]
[1748135023681,30.45660201,171.62,171.6,34.88]
[1748135023983,26.0,171.71,171.61,30.45660201]
[1748135024289,30.45660201,171.67,171.62,30.45660201]
[1748135024967,26.0,171.71,171.62,30.45660201]
[1748135025166,30.45660201,171.67,171.62,30.45660201]
[1748135025378,26.0,171.71,171.62,30.45660201]
[1748135025578,30.45660201,171.7,171.65,30.45660201]
[1748135025875,8.2592,171.77,171.66,65.33660201]
[1748135026072,0.14216157,171.8,171.67,30.45660201]
[1748135026393,30.45660201,171.71,171.66,65.33660201]
[1748135026692,26.0,171.78,171.67,30.45660201]
[1748135026895,4.04613386,171.77,171.7,30.45660201]
[1748135027059,4.04613386,171.77,171.73,30.45660201]
[1748135027258,4.04613386,171.77,171.74,34.88]
[1748135027483,4.04613386,171.77,171.75,270.88]
[1748135027688,4.04613386,171.77,171.76,30.45660201]
[1748135027885,4.04613386,171.77,171.76,37.00910201]
[1748135028191,30.45660201,171.84,171.76,37.00910201]
[1748135028393,4.00060296,171.89,171.79,30.45660201]
[1748135028592,30.45660201,171.85,171.76,6.5525]
[1748135028908,30.45660201,171.79,171.76,6.5525]
[1748135029068,30.45660201,171.79,171.6,30.45660201]
[1748135029069,30.45660201,171.77,171.72,30.45660201]
[1748135029268,26.0,171.85,171.77,34.88]
[1748135029489,30.45660201,171.8,171.77,34.88]
[1748135029894,30.45660201,171.79,171.77,34.88]
[1748135030281,26.0,171.85,171.77,34.88]
[1748135030483,30.45660201,171.8,171.77,34.88]
[1748135030798,26.0,171.86,171.77,34.88]
[1748135030994,30.45660201,171.8,171.77,34.88]
[1748135031463,30.45660201,171.81,171.77,34.88]
[1748135031667,30.45660201,171.82,171.77,34.88]
[1748135032097,26.0,171.91,171.8,30.45660201]
[1748135032304,30.45660201,171.86,171.81,30.45660201]
[1748135032670,30.45660201,171.85,171.8,30.45660201]
[1748135033193,30.45660201,171.86,171.81,30.45660201]
[1748135033577,30.45660201,171.85,171.81,30.45660201]
[1748135033898,30.45660201,171.84,171.79,30.45660201]
[1748135034082,30.45660201,171.86,171.81,30.45660201]
[1748135034278,30.45660201,171.87,171.82,30.45660201]
[1748135034469,26.0,171.9,171.82,30.45660201]
[1748135034677,30.45660201,171.87,171.82,30.45660201]
[1748135034875,26.0,171.9,171.81,6.0312]
[1748135035076,30.45660201,171.85,171.81,6.0312]
[1748135035690,26.0,171.9,171.81,25.85514479]
[1748135035899,19.82394479,171.86,171.81,6.0312]
[1748135036088,19.82394479,171.84,171.81,6.0312]
[1748135036300,19.82394479,171.84,171.82,34.86]
[1748135036603,26.0,171.9,171.82,34.86]
[1748135036811,45.82394479,171.9,171.82,34.86]
[1748135037314,4.06820943,171.89,171.82,34.86]
[1748135037616,4.06820943,171.89,171.83,270.32]
[1748135038000,19.82394479,171.84,171.83,270.32]
[1748135038205,19.82394479,171.85,171.83,52.82]
[1748135038513,26.0,171.81,171.7,6.0027]
[1748135038691,19.82394479,171.78,171.73,19.82394479]
[1748135038891,19.82394479,171.79,171.74,19.82394479]
[1748135039105,19.82394479,171.76,171.71,54.68394479]
[1748135039413,19.82394479,171.77,171.72,54.68394479]
[1748135039986,19.82394479,171.77,171.72,34.86]
[1748135040212,19.82394479,171.77,171.72,54.68394479]
[1748135040513,19.82394479,171.74,171.7,6.0027]
[1748135040710,19.82394479,171.71,171.66,6.1194]
[1748135041015,19.82394479,171.7,171.67,34.86]
[1748135041226,26.0,171.74,171.68,34.86]
[1748135041393,19.82394479,171.7,171.68,34.86]
[1748135041711,18.79181043,171.78,171.68,34.86]
[1748135041712,30.17883166,171.69,171.68,34.86]
[1748135042685,60.25735674,171.69,171.68,34.86]
[1748135042882,60.25735674,171.69,171.61,6.1194]
[1748135042883,26.0,171.66,171.58,2.0426]
[1748135043116,26.0,171.66,171.59,34.86]
[1748135043315,30.17883166,171.65,171.6,30.17883166]
[1748135043506,48.97064209,171.72,171.59,34.86]
[1748135043507,30.17883166,171.68,171.62,30.17883166]
[1748135043817,26.0,171.7,171.64,30.17883166]
[1748135044003,26.0,171.7,171.65,65.03883166]
[1748135044004,30.17883166,171.7,171.65,65.03883166]
[1748135044819,30.17883166,171.68,171.65,34.86]
[1748135045013,26.0,171.72,171.65,34.86]
[1748135045220,30.17883166,171.73,171.68,30.17883166]
[1748135045536,30.17883166,171.74,171.69,30.17883166]
[1748135046031,0.14216157,171.81,171.7,30.17883166]
[1748135046195,30.17883166,171.75,171.71,34.86]
[1748135046518,30.17883166,171.72,171.67,6.1677]
[1748135046705,30.17883166,171.7,171.68,34.86]
[1748135047213,30.17883166,171.71,171.68,34.86]
[1748135047398,26.0,171.73,171.68,34.86]
[1748135047399,4.0935295,171.74,171.68,34.86]
[1748135047600,4.0935295,171.74,171.72,30.17883166]
[1748135047806,4.0935295,171.77,171.73,30.17883166]
[1748135048133,4.0935295,171.77,171.74,65.03883166]
[1748135048423,4.0935295,171.77,171.75,30.17883166]
[1748135048730,26.0,171.82,171.75,30.17883166]
[1748135048897,30.17883166,171.8,171.75,30.17883166]
[1748135049093,30.17883166,171.79,171.74,65.03883166]
[1748135049294,4.0935295,171.84,171.78,30.17883166]
[1748135049509,4.0935295,171.84,171.81,30.17883166]
[1748135049714,4.0935295,171.84,171.82,34.86]
[1748135049923,4.0935295,171.85,171.82,34.86]
[1748135050421,34.27236116,171.85,171.82,34.86]
[1748135051021,30.17883166,171.84,171.82,34.86]
[1748135051222,30.17883166,171.83,171.82,34.86]
[1748135051526,30.17883166,171.83,171.79,6.1114]
[1748135051724,30.17883166,171.8,171.74,6.1114]
[1748135051949,30.17883166,171.77,171.75,34.86]
[1748135052102,30.17883166,171.78,171.75,34.86]
[1748135052302,26.0,171.81,171.75,34.86]
[1748135052521,30.17883166,171.79,171.75,34.86]
[1748135053415,26.0,171.84,171.78,30.17883166]
[1748135053625,30.17883166,171.84,171.79,30.17883166]
[1748135053828,30.17883166,171.83,171.78,30.17883166]
[1748135054130,30.17883166,171.82,171.77,30.17883166]
[1748135054429,30.17883166,171.85,171.79,30.17883166]
[1748135054740,30.17883166,171.81,171.76,30.17883166]
[1748135054908,30.17883166,171.82,171.76,30.17883166]
[1748135055434,26.0,171.83,171.77,34.86]
[1748135055820,30.17883166,171.8,171.77,34.86]
[1748135056126,26.0,171.87,171.77,34.86]
[1748135056480,30.17883166,171.82,171.77,65.03883166]
[1748135056914,30.17883166,171.81,171.77,34.86]
[1748135057120,30.17883166,171.8,171.77,34.86]
[1748135057318,26.0,171.75,171.64,2.1411]
[1748135057543,56.17883166,171.78,171.65,305.16]
[1748135057544,30.17883166,171.7,171.65,305.16]
[1748135057726,30.17883166,171.69,171.65,305.16]
[1748135057904,30.17883166,171.7,171.65,117.85883166]
[1748135058107,6.91185782,171.85,171.67,30.17883166]
[1748135058427,6.91185782,171.85,171.66,34.86]
[1748135058428,26.0,171.74,171.68,30.17883166]
[1748135058598,26.0,171.74,171.66,34.86]
[1748135058599,30.17883166,171.73,171.66,34.86]
[1748135058801,30.17883166,171.7,171.66,34.86]
[1748135059703,30.17883166,171.69,171.66,34.86]
[1748135060205,30.17883166,171.68,171.66,34.86]
[1748135060433,30.17883166,171.67,171.66,34.86]
[1748135060999,56.17883166,171.67,171.66,34.86]
[1748135062026,56.17883166,171.67,171.57,30.17883166]
[1748135062027,30.17883166,171.67,171.57,30.17883166]
[1748135062206,30.17883166,171.61,171.58,34.86]
[1748135062397,26.0,171.64,171.58,34.86]
[1748135062601,30.17883166,171.62,171.58,34.86]
[1748135063240,30.17883166,171.59,171.54,8.3005]
[1748135063417,30.17883166,171.59,171.55,34.86]
[1748135064131,26.0,171.65,171.57,30.17883166]
[1748135064431,30.17883166,171.68,171.63,30.17883166]
[1748135064610,26.0,171.7,171.64,34.86]
[1748135064933,30.17883166,171.67,171.64,34.86]
[1748135065311,30.17883166,171.65,171.64,34.86]
[1748135066743,48.97064209,171.65,171.64,34.86]
[1748135066924,26.0,171.62,171.54,6.1899]
[1748135067107,12.42900296,171.74,171.56,30.17883166]
[1748135067306,30.17883166,171.67,171.61,30.17883166]
[1748135067614,56.17883166,171.67,171.62,305.0]
[1748135067826,56.17883166,171.67,171.63,52.5]
[1748135068331,30.17883166,171.68,171.63,52.5]
[1748135068507,26.0,171.71,171.62,65.05883166]
[1748135068827,30.17883166,171.71,171.63,6.0603]
[1748135069060,30.17883166,171.71,171.66,30.17883166]
[1748135069353,30.17883166,171.71,171.63,6.0603]
[1748135069537,30.17883166,171.69,171.64,30.17883166]
[1748135069735,19.86192911,171.69,171.64,19.86192911]
[1748135070052,19.86192911,171.68,171.63,25.92222911]
[1748135070420,0.14216157,171.78,171.67,19.86192911]
[1748135070619,19.86192911,171.75,171.7,19.86192911]
[1748135070820,19.86192911,171.76,171.71,54.74192911]
[1748135071025,45.86192911,171.76,171.72,34.88]
[1748135071229,19.86192911,171.75,171.72,34.88]
[1748135071446,45.86192911,171.76,171.72,34.88]
[1748135071629,23.97307732,171.78,171.72,54.74192911]
[1748135071833,19.86192911,171.79,171.74,19.86192911]
[1748135072834,19.86192911,171.77,171.72,54.74192911]
[1748135073552,22.79241339,171.86,171.74,19.86192911]
[1748135073553,19.86192911,171.8,171.74,19.86192911]
[1748135073721,26.0,171.83,171.74,19.86192911]
[1748135073926,19.86192911,171.8,171.74,26.10982911]
[1748135074125,19.86192911,171.8,171.75,19.86192911]
[1748135074859,19.86192911,171.8,171.74,26.10982911]
[1748135075043,19.86192911,171.77,171.74,6.2479]
[1748135075264,19.86192911,171.76,171.72,34.88]
[1748135075635,19.86192911,171.77,171.73,34.88]
[1748135076355,26.0,171.79,171.75,19.86192911]
[1748135076569,26.0,171.79,171.73,34.88]
[1748135076570,45.86192911,171.79,171.74,19.86192911]
[1748135076951,26.0,171.79,171.73,34.88]
[1748135077267,45.86192911,171.79,171.74,19.86192911]
[1748135077463,45.86192911,171.79,171.75,270.04]
[1748135077666,26.0,171.79,171.75,270.04]
[1748135077844,45.86192911,171.79,171.75,52.48]
[1748135078172,26.0,171.79,171.75,52.48]
[1748135078340,19.86192911,171.78,171.73,54.74192911]
[1748135080379,19.86192911,171.76,171.71,2.0151]
[1748135080667,19.86192911,171.75,171.71,2.0151]
[1748135080983,19.86192911,171.74,171.72,34.86]
[1748135081170,19.86192911,171.75,171.72,34.86]
[1748135081364,19.86192911,171.73,171.69,6.2479]
[1748135081543,19.86192911,171.7,171.66,2.0078]
[1748135081750,26.0,171.72,171.67,34.86]
[1748135081751,19.86192911,171.69,171.67,34.86]
[1748135082957,26.0,171.68,171.67,34.86]
[1748135083768,45.86192911,171.68,171.67,34.86]
[1748135083974,26.0,171.74,171.67,34.86]
[1748135084151,26.0,171.68,171.67,34.86]
[1748135084860,26.0,171.74,171.67,54.72192911]
[1748135085065,26.0,171.7,171.68,19.86192911]
[1748135085462,10.35060296,171.84,171.69,19.86192911]
[1748135085463,18.79181043,171.83,171.69,19.86192911]
[1748135085667,4.00060296,171.84,171.75,19.86192911]
[1748135085869,19.86192911,171.81,171.76,54.72192911]
[1748135086163,4.00060296,171.84,171.76,54.72192911]
[1748135086164,19.86192911,171.82,171.77,19.86192911]
[1748135086474,26.0,171.8,171.78,19.86192911]
[1748135086677,19.86192911,171.83,171.78,19.86192911]
[1748135086851,19.86192911,171.82,171.77,19.86192911]
[1748135087049,45.86192911,171.82,171.77,19.86192911]
[1748135087671,45.86192911,171.82,171.78,270.04]
[1748135087851,18.79181043,171.89,171.78,289.90192911]
[1748135088060,19.86192911,171.83,171.78,72.34192911]
[1748135088246,19.86192911,171.83,171.78,19.86192911]
[1748135088673,19.86192911,171.82,171.78,19.86192911]
[1748135088857,19.86192911,171.82,171.76,41.1541]
[1748135088858,19.86192911,171.81,171.76,41.1541]
[1748135089055,19.86192911,171.81,171.71,20.69184886]
[1748135089056,19.86192911,171.77,171.72,19.86192911]
[1748135089254,19.86192911,171.76,171.73,34.86]
[1748135089561,19.86192911,171.77,171.73,34.86]
[1748135090182,19.86192911,171.76,171.73,34.86]
[1748135090964,18.79181043,171.83,171.73,34.86]